bitfinex/quotes_SOLUSD_20241008
["timestamp","ask_amount","ask_price","bid_price","bid_amount"]
[1728365006449,6.9714,143.45,143.41,18.12900144]
[1728365007390,6.9716,143.44,143.41,18.12900144]
[1728365007669,6.9716,143.44,143.41,0.69730144]
[1728365007763,5.9716,143.44,143.41,0.69730144]
[1728365007943,9.16808,143.47,143.41,0.69730144]
[1728365008373,20.12549,143.46,143.41,0.69730144]
[1728365009254,6.9725,143.42,143.41,0.69730144]
[1728365013667,27.22348,143.42,143.41,0.69730144]
[1728365014774,27.22348,143.42,143.41,0.87176342]
[1728365015277,26.9725,143.42,143.41,0.87176342]
[1728365015472,26.9725,143.42,143.41,0.69730144]
[1728365015648,27.22348,143.42,143.41,0.69730144]
[1728365016051,26.9725,143.42,143.41,0.69730144]
[1728365017882,6.972,143.43,143.41,0.69730144]
[1728365018376,6.9725,143.42,143.41,0.69730144]
[1728365018958,6.9718,143.44,143.41,0.69730144]
[1728365019177,6.9721,143.43,143.41,0.69730144]
[1728365019672,6.5511,143.46,143.41,0.69730144]
[1728365019883,9.16808,143.47,143.41,0.69730144]
[1728365020052,6.9714,143.45,143.41,0.69730144]
[1728365020662,6.9714,143.45,143.41,7.67010144]
[1728365022082,6.9714,143.45,143.41,0.69730144]
[1728365022381,6.9722,143.43,143.41,0.69730144]
[1728365026466,20.0,143.46,143.41,0.69730144]
[1728365026665,6.9725,143.42,143.41,0.69730144]
[1728365027372,20.0,143.46,143.41,0.69730144]
[1728365027562,6.972,143.44,143.41,0.69730144]
[1728365028073,20.0,143.46,143.41,0.69730144]
[1728365028275,6.9721,143.43,143.41,0.69730144]
[1728365029561,0.25098,143.45,143.41,0.69730144]
[1728365029766,6.9725,143.42,143.41,0.69730144]
[1728365032392,26.9725,143.42,143.41,0.69730144]
[1728365033781,27.22348,143.42,143.41,0.69730144]
[1728365034800,26.9725,143.42,143.41,0.69730144]
[1728365036376,27.22348,143.42,143.41,0.69730144]
[1728365036574,36.28596983,143.42,143.41,0.69730144]
[1728365037797,73.097764,143.42,143.41,1.44e-06]
[1728365038003,27.22448,143.4,143.39,10.18595041]
[1728365038988,27.97280364,143.4,143.39,10.18595041]
[1728365039370,28.34696546,143.4,143.39,10.18595041]
[1728365040095,28.22147546,143.4,143.39,10.18595041]
[1728365040264,28.09598546,143.4,143.39,10.18595041]
[1728365041705,28.34696546,143.4,143.39,10.18595041]
[1728365042090,26.9735,143.4,143.39,10.18595041]
[1728365043400,27.59864182,143.4,143.39,10.18595041]
[1728365044093,27.34766182,143.4,143.39,10.18595041]
[1728365044496,26.9735,143.4,143.39,10.18595041]
[1728365047287,27.22448,143.4,143.39,10.18595041]
[1728365047592,36.28696983,143.4,143.39,10.18595041]
[1728365048295,36.28696983,143.4,143.39,1.66985041]
[1728365048512,36.28696983,143.4,143.35,0.8046923]
[1728365048513,6.6254,143.36,143.35,0.8046923]
[1728365049184,26.6254,143.36,143.35,0.8046923]
[1728365049995,26.75089,143.36,143.35,0.8046923]
[1728365050175,35.58614016,143.36,143.35,0.8046923]
[1728365050383,59.36302416,143.36,143.35,9.23e-05]
[1728365050585,59.36302416,143.36,143.28,0.17446198]
[1728365050586,26.9788,143.29,143.28,0.17446198]
[1728365051897,27.10429,143.29,143.28,0.17446198]
[1728365052195,20.0,143.28,143.21,0.75837428]
[1728365052404,6.9813,143.24,143.21,0.75837428]
[1728365053196,6.9789,143.29,143.24,6.9812]
[1728365053578,6.9793,143.28,143.23,24.436]
[1728365056506,6.9804,143.26,143.22,22.9057]
[1728365056694,20.0,143.3,143.23,1.39607365]
[1728365057013,6.9798,143.27,143.22,22.9057]
[1728365057695,6.9794,143.28,143.24,6.9812]
[1728365057999,6.9789,143.29,143.24,6.9812]
[1728365058207,6.9789,143.29,143.25,6.9807]
[1728365058585,6.9789,143.29,143.24,6.9811]
[1728365060008,20.0,143.33,143.23,23.776884]
[1728365060189,6.9788,143.3,143.25,6.9805]
[1728365060505,6.9788,143.3,143.26,6.9802]
[1728365060713,20.0,143.33,143.25,6.3554]
[1728365060912,6.9777,143.32,143.27,6.9797]
[1728365061213,6.9777,143.32,143.28,8.374812]
[1728365061715,18.09754583,143.39,143.29,16.2007]
[1728365061894,6.9763,143.35,143.31,6.9778]
[1728365062506,6.9753,143.37,143.32,6.9772]
[1728365062721,6.9753,143.37,143.32,13.1786]
[1728365062886,33.3119,143.4,143.32,6.2014]
[1728365063081,7.8338732,143.43,143.33,1.39528792]
[1728365063406,6.9746,143.38,143.33,6.9768]
[1728365063823,6.9751,143.37,143.32,30.6214]
[1728365064695,6.9745,143.38,143.33,6.9768]
[1728365064900,6.974,143.39,143.34,6.9763]
[1728365065383,6.974,143.39,143.35,6.9758]
[1728365065704,17.4323,143.42,143.33,23.776884]
[1728365065705,6.9745,143.38,143.33,23.776884]
[1728365066284,6.9745,143.38,143.32,23.6441]
[1728365066478,6.9745,143.38,143.33,6.9764]
[1728365066698,6.9755,143.36,143.32,23.6441]
[1728365066896,34.8611,143.43,143.32,23.6441]
[1728365066897,17.4346,143.4,143.32,6.2014]
[1728365067204,6.9768,143.34,143.32,6.2014]
[1728365067602,6.976,143.35,143.32,6.2014]
[1728365068284,17.4367,143.38,143.29,33.6474]
[1728365068491,6.976,143.35,143.3,6.9779]
[1728365068686,6.976,143.35,143.31,6.9778]
[1728365068895,6.976,143.35,143.3,6.9782]
[1728365069099,6.9767,143.34,143.29,40.6261]
[1728365069381,20.0,143.37,143.29,16.2007]
[1728365069382,6.9774,143.32,143.29,16.2007]
[1728365070189,6.9783,143.3,143.27,6.6304]
[1728365070399,6.9779,143.31,143.27,6.6304]
[1728365072611,6.9779,143.31,143.28,1.39569304]
[1728365073612,6.9779,143.31,143.27,6.6304]
[1728365074194,6.9786,143.3,143.27,6.6304]
[1728365074905,6.9789,143.29,143.23,39.6151]
[1728365075107,6.9793,143.28,143.24,6.9812]
[1728365075412,70.6902,143.37,143.23,39.6151]
[1728365075413,6.9803,143.26,143.23,39.6151]
[1728365075906,6.9799,143.27,143.23,24.0191]
[1728365076413,17.4472,143.29,143.23,6.5651]
[1728365076679,6.9804,143.26,143.23,6.5651]
[1728365076908,6.9798,143.27,143.23,7.96124245]
[1728365077097,23.8501,143.32,143.24,1.39613875]
[1728365077098,17.4438,143.32,143.24,1.39613875]
[1728365077302,6.9784,143.3,143.25,6.9807]
[1728365078613,6.9784,143.3,143.26,1.39587736]
[1728365078800,6.9784,143.3,143.25,6.9807]
[1728365079001,6.9784,143.3,143.26,1.39587845]
[1728365079608,6.9784,143.3,143.26,8.37587845]
[1728365079818,6.9779,143.31,143.26,8.37587845]
[1728365080102,23.7592,143.35,143.27,1.39577663]
[1728365080436,6.9787,143.3,143.25,6.9807]
[1728365081896,6.9794,143.28,143.24,24.4335]
[1728365082206,17.4428,143.33,143.25,6.9806]
[1728365082207,6.9788,143.29,143.25,6.9806]
[1728365084715,6.9793,143.28,143.24,24.4336]
[1728365084901,6.9799,143.27,143.23,6.5651]
[1728365085103,6.9799,143.27,143.23,13.5467]
[1728365085414,6.9794,143.28,143.23,13.5467]
[1728365086419,6.9799,143.27,143.23,13.5467]
[1728365089452,6.9804,143.26,143.23,6.5651]
[1728365090720,17.4452,143.31,143.23,6.5651]
[1728365090721,6.9798,143.27,143.23,13.5468]
[1728365091405,6.9798,143.27,143.24,1.3960685]
[1728365091604,6.9798,143.27,143.23,13.5468]
[1728365092621,6.9798,143.27,143.24,1.39606701]
[1728365093304,6.9794,143.28,143.24,6.9811]
[1728365093509,6.9789,143.29,143.25,1.39592286]
[1728365093898,6.9789,143.29,143.24,6.9811]
[1728365094409,57.86402096,143.37,143.26,6.9801]
[1728365094410,6.9784,143.3,143.26,6.9801]
[1728365095224,23.7594,143.35,143.25,17.4515]
[1728365095398,6.978,143.31,143.26,6.9799]
[1728365095724,6.978,143.31,143.27,6.9797]
[1728365096232,23.7594,143.35,143.26,6.9801]
[1728365096420,6.9784,143.3,143.26,6.9801]
[1728365097311,6.9774,143.32,143.28,6.9789]
[1728365097619,6.9774,143.32,143.29,1.39559062]
[1728365098208,6.9774,143.32,143.27,24.4284]
[1728365098402,17.4406,143.35,143.27,24.4284]
[1728365098727,6.978,143.31,143.27,17.449]
[1728365099793,6.9784,143.3,143.25,22.626]
[1728365099998,6.9791,143.29,143.25,22.626]
[1728365100707,6.9784,143.3,143.26,1.395861]
[1728365101226,6.9789,143.29,143.25,22.626]
[1728365101924,6.9784,143.3,143.25,22.626]
[1728365102300,20.0,143.34,143.25,15.6456]
[1728365102620,6.9779,143.31,143.27,6.9793]
[1728365102814,6.9784,143.3,143.26,24.4303]
[1728365104023,6.9793,143.28,143.25,15.6456]
[1728365104527,17.444,143.32,143.23,24.0186]
[1728365104528,6.9799,143.27,143.23,24.0186]
[1728365104898,6.9804,143.26,143.23,6.5651]
[1728365105025,17.4463,143.3,143.23,13.5468]
[1728365105026,6.9799,143.27,143.23,13.5468]
[1728365105204,6.9799,143.27,143.23,14.9429156]
[1728365105437,6.9794,143.28,143.24,6.9811]
[1728365105602,6.9786,143.3,143.24,30.55492824]
[1728365105801,6.9779,143.31,143.25,14.49812683]
[1728365106025,6.9779,143.31,143.25,13.10232824]
[1728365106214,6.9785,143.3,143.26,6.9801]
[1728365107337,6.9785,143.3,143.25,6.9806]
[1728365107910,6.978,143.31,143.26,17.4502]
[1728365108232,17.4392,143.36,143.27,1.39567326]
[1728365108447,16.10430053,143.35,143.27,17.08807326]
[1728365108727,6.977,143.33,143.27,17.08807326]
[1728365108932,16.10430053,143.34,143.27,17.08807326]
[1728365108933,6.19396174,143.32,143.28,17.4475]
[1728365109131,15.8132,143.37,143.31,6.9778]
[1728365109428,15.8132,143.37,143.29,1.39546306]
[1728365109429,16.10936397,143.36,143.29,6.4907]
[1728365109738,23.08556397,143.35,143.3,6.9782]
[1728365109936,16.10936397,143.34,143.3,6.9782]
[1728365110235,6.9784,143.3,143.27,22.1831]
[1728365110613,17.4394,143.36,143.27,29.1628]
[1728365110804,16.11171666,143.35,143.27,22.1831]
[1728365111009,51.5263,143.4,143.27,22.1831]
[1728365111010,16.11171666,143.34,143.27,35.28542824]
[1728365111210,6.9774,143.32,143.28,6.9789]
[1728365112717,6.9769,143.33,143.28,6.9789]
[1728365113035,6.1975176,143.32,143.28,6.9789]
[1728365113240,6.9774,143.32,143.28,6.9789]
[1728365114134,16.1159417,143.31,143.27,22.1831]
[1728365114359,6.19847121,143.3,143.27,22.1831]
[1728365114511,6.9786,143.3,143.27,22.1831]
[1728365114832,17.4406,143.35,143.27,23.57873201]
[1728365115014,6.978,143.31,143.27,22.1831]
[1728365115222,6.19926618,143.3,143.27,22.1831]
[1728365115518,6.978,143.31,143.27,22.1831]
[1728365115718,6.19938874,143.3,143.27,22.1831]
[1728365115918,6.9783,143.3,143.27,22.1831]
[1728365116527,6.978,143.31,143.27,22.1831]
[1728365116842,17.4406,143.35,143.27,22.1831]
[1728365117126,23.09683769,143.34,143.29,6.9784]
[1728365117430,6.9777,143.32,143.27,59.71382824]
[1728365117631,17.4393,143.36,143.28,23.776884]
[1728365117831,6.9769,143.33,143.29,6.9787]
[1728365118205,6.9769,143.33,143.3,1.39539988]
[1728365118310,6.20049923,143.32,143.3,1.39539988]
[1728365118506,6.9769,143.33,143.3,1.39539988]
[1728365118709,6.20058152,143.32,143.3,1.39539988]
[1728365118938,6.9769,143.33,143.3,1.39539988]
[1728365119124,6.20056139,143.32,143.3,1.39539988]
[1728365119328,6.9769,143.33,143.3,1.39539988]
[1728365119510,6.20071539,143.32,143.3,1.39539988]
[1728365119713,6.9769,143.33,143.3,1.39539988]
[1728365119978,6.20071916,143.32,143.29,6.9787]
[1728365120233,6.9769,143.33,143.29,6.9787]
[1728365120437,6.20082321,143.32,143.28,30.756084]
[1728365120637,6.19973435,143.31,143.28,23.776884]
[1728365120830,6.9778,143.32,143.28,23.776884]
[1728365121196,6.9788,143.29,143.27,22.1831]
[1728365122017,20.0,143.33,143.27,22.1831]
[1728365122218,6.9785,143.3,143.27,22.1831]
[1728365123233,6.9793,143.28,143.24,24.4339]
[1728365123442,6.9794,143.28,143.24,37.53622824]
[1728365123741,17.444,143.32,143.24,37.53622824]
[1728365123943,6.9792,143.29,143.24,37.53622824]
[1728365124123,6.9792,143.29,143.25,20.08302824]
[1728365124532,6.9792,143.29,143.24,24.4339]
[1728365124743,6.9792,143.29,143.24,37.53622824]
[1728365125345,6.9792,143.29,143.25,43.85991224]
[1728365125545,6.9792,143.29,143.25,45.25568238]
[1728365126238,17.444,143.32,143.25,45.25568238]
[1728365126445,6.9785,143.3,143.25,45.25568238]
[1728365126739,6.20704059,143.29,143.25,45.25568238]
[1728365126938,6.9791,143.29,143.25,20.08302824]
[1728365127845,6.9791,143.29,143.25,13.10232824]
[1728365128252,6.9795,143.28,143.25,13.10232824]
[1728365128654,6.9789,143.29,143.26,1.39579447]
[1728365129333,6.9782,143.31,143.27,13.10232824]
[1728365129543,6.21021456,143.3,143.27,13.10232824]
[1728365129824,6.979,143.29,143.25,6.9806]
[1728365130639,6.9794,143.28,143.24,6.9811]
[1728365130852,6.9794,143.28,143.24,20.08342824]
[1728365131865,6.9794,143.28,143.24,13.10232824]
[1728365132350,6.9794,143.28,143.23,46.1299]
[1728365132554,6.9794,143.28,143.24,13.10232824]
[1728365132737,17.4426,143.33,143.23,46.1299]
[1728365132738,6.9804,143.26,143.23,34.79732824]
[1728365132954,6.9804,143.26,143.23,21.695]
[1728365133135,6.9802,143.27,143.23,21.695]
[1728365133742,17.4454,143.31,143.24,21.47948066]
[1728365133950,6.9789,143.29,143.25,6.9807]
[1728365134197,6.9789,143.29,143.26,1.39578761]
[1728365134405,6.21205078,143.28,143.26,1.39578761]
[1728365134551,6.9784,143.3,143.26,1.39578761]
[1728365134728,6.21254766,143.29,143.26,1.39578761]
[1728365135038,20.0,143.32,143.24,17.4524]
[1728365135240,6.9797,143.28,143.24,17.4524]
[1728365135843,6.9797,143.28,143.24,24.4336]
[1728365136040,6.9797,143.28,143.24,17.4524]
[1728365136239,6.21282953,143.27,143.24,17.4524]
[1728365136446,6.9797,143.28,143.24,17.4524]
[1728365136654,6.21287344,143.27,143.24,17.4524]
[1728365136853,6.9797,143.28,143.24,17.4524]
[1728365137063,6.21285473,143.27,143.24,17.4524]
[1728365137246,6.9803,143.26,143.22,30.758984]
[1728365137505,6.9799,143.27,143.23,13.10232824]
[1728365137776,6.9794,143.28,143.24,8.37705021]
[1728365138250,6.21534982,143.27,143.24,8.37705021]
[1728365138455,6.9794,143.28,143.24,8.37705021]
[1728365138640,17.4442,143.32,143.25,36.87921224]
[1728365138833,6.5086,143.3,143.21,0.75837428]
[1728365139044,6.9808,143.25,143.21,20.84340252]
[1728365140072,6.9808,143.25,143.21,13.86070252]
[1728365141238,6.9813,143.24,143.21,0.75837428]
[1728365142151,6.9818,143.23,143.21,0.75837428]
[1728365142339,6.5086,143.3,143.21,0.75837428]
[1728365142340,6.9822,143.22,143.21,0.75837428]
[1728365146267,13.18542965,143.22,143.21,0.75837428]
[1728365146573,13.18286488,143.22,143.21,0.75837428]
[1728365147411,6.9822,143.22,143.21,0.75837428]
[1728365147638,13.18294315,143.22,143.21,0.75837428]
[1728365147984,13.18018062,143.22,143.21,0.75837428]
[1728365148341,6.9822,143.22,143.21,0.75837428]
[1728365148745,6.9819,143.23,143.21,0.75837428]
[1728365150040,6.9822,143.22,143.21,0.75837428]
[1728365153883,6.9822,143.22,143.15,17.4636]
[1728365153884,6.9856,143.16,143.15,1.39647477]
[1728365154062,6.9848,143.17,143.13,21.48587618]
[1728365154365,20.0,143.21,143.11,17.4684]
[1728365154567,6.986,143.15,143.11,17.4684]
[1728365154744,6.9861,143.14,143.1,6.9877]
[1728365154951,17.4584,143.2,143.1,6.9877]
[1728365154952,6.9857,143.15,143.1,20.09002824]
[1728365155269,6.9857,143.15,143.1,5.4877]
[1728365155571,6.9857,143.15,143.1,18.59002824]
[1728365156269,6.9857,143.15,143.12,13.10232824]
[1728365157375,6.9876,143.11,143.07,0.8046923]
[1728365157386,6.9878,143.11,143.07,0.8046923]
[1728365157691,6.9872,143.12,143.07,7.7941923]
[1728365157821,20.0,143.14,143.08,13.10232824]
[1728365157959,6.9863,143.14,143.08,20.09092824]
[1728365158162,6.9863,143.14,143.08,20.09132824]
[1728365158566,6.9863,143.14,143.08,6.989]
[1728365158871,6.9856,143.16,143.11,23.776884]
[1728365160384,20.0,143.17,143.11,23.776884]
[1728365160566,6.9857,143.15,143.11,23.776884]
[1728365160769,6.9852,143.16,143.11,30.764384]
[1728365160964,15.5889,143.18,143.14,6.9857]
[1728365161168,15.5889,143.18,143.12,24.4533]
[1728365161360,6.9852,143.16,143.12,17.4667]
[1728365162557,6.9847,143.17,143.13,23.776884]
[1728365163150,6.9847,143.17,143.12,24.4534]
[1728365163358,6.9852,143.16,143.12,17.4667]
[1728365163747,6.9852,143.16,143.12,24.4538]
[1728365163953,6.9848,143.17,143.12,17.4667]
[1728365164967,26.2485,143.21,143.12,17.4667]
[1728365165153,6.9853,143.16,143.12,17.4667]
[1728365165554,26.2485,143.21,143.11,6.9875]
[1728365165555,6.986,143.15,143.11,23.776884]
[1728365168072,6.986,143.15,143.11,6.9876]
[1728365168251,17.4588,143.2,143.12,25.1738695]
[1728365168456,6.9848,143.17,143.13,14.49929878]
[1728365168660,6.9848,143.17,143.13,21.48569878]
[1728365169079,6.9843,143.18,143.14,23.776884]
[1728365169381,17.4588,143.2,143.14,23.776884]
[1728365169674,6.9847,143.17,143.14,23.776884]
[1728365170379,17.4588,143.2,143.12,23.776884]
[1728365170583,6.9858,143.15,143.12,23.776884]
[1728365173784,6.9853,143.16,143.13,1.39699739]
[1728365174382,6.9852,143.16,143.12,23.776884]
[1728365174766,6.9848,143.17,143.12,30.763984]
[1728365175992,6.9856,143.16,143.12,23.776884]
[1728365176185,6.9856,143.16,143.12,30.763984]
[1728365176395,6.9861,143.15,143.11,17.4683]
[1728365176887,6.9861,143.15,143.11,24.4559]
[1728365177466,20.0,143.19,143.11,23.776884]
[1728365177691,6.9862,143.14,143.11,23.776884]
[1728365180768,6.9869,143.13,143.09,23.902374]
[1728365180966,6.9869,143.13,143.09,37.00470224]
[1728365181163,6.9869,143.13,143.09,43.99320224]
[1728365181789,6.9869,143.13,143.09,30.890874]
[1728365181996,6.9869,143.13,143.09,43.99320224]
[1728365182594,26.4834,143.19,143.09,23.776884]
[1728365182815,6.9875,143.12,143.09,23.776884]
[1728365183294,6.9881,143.1,143.07,0.8046923]
[1728365183797,6.9877,143.11,143.07,0.8046923]
[1728365184090,6.9877,143.11,143.07,7.7941923]
[1728365184294,6.9877,143.11,143.07,0.8046923]
[1728365184772,6.9882,143.1,143.07,0.8046923]
[1728365185405,15.038,143.11,143.07,0.8046923]
[1728365185572,15.038,143.11,142.98,6.9939]
[1728365185771,6.9919,143.03,142.98,6.9939]
[1728365186070,6.9919,143.03,142.98,20.09622824]
[1728365186250,6.9919,143.03,142.98,6.9939]
[1728365186401,20.0,143.06,142.98,20.09622824]
[1728365186645,6.992,143.02,142.98,20.09622824]
[1728365186774,6.9916,143.03,142.98,6.9939]
[1728365186975,17.4747,143.07,143.02,1.39821198]
[1728365187197,6.9915,143.03,143.02,1.39821198]
[1728365187495,6.9911,143.04,142.99,20.09572824]
[1728365187881,8.86141645,143.1,143.01,17.4401584]
[1728365188077,6.9904,143.06,143.02,6.9919]
[1728365188279,32.5081,143.11,143.03,20.09372824]
[1728365188476,6.9886,143.09,143.04,30.767684]
[1728365190186,6.2576,143.12,143.05,1.39770539]
[1728365190376,6.9866,143.13,143.08,6.989]
[1728365190576,6.9865,143.14,143.09,30.765384]
[1728365192172,6.9871,143.12,143.07,6.9895]
[1728365192394,34.927,143.16,143.03,67.4784]
[1728365192594,33.42929217,143.15,143.03,67.4784]
[1728365192897,6.9884,143.1,143.05,6.9904]
[1728365193280,6.9887,143.09,143.05,6.9904]
[1728365194300,6.9886,143.09,143.04,6.9907]
[1728365194512,6.9886,143.09,143.06,0.0475338]
[1728365195404,17.4674,143.13,143.06,0.0475338]
[1728365197089,6.9886,143.09,143.06,0.0475338]
[1728365199077,17.4674,143.13,143.08,6.9887]
[1728365199078,6.9867,143.13,143.08,6.9887]
[1728365199458,8.60151798,143.18,143.09,1.397365]
[1728365199529,15.99702232,143.17,143.1,8.38527812]
[1728365199684,6.9857,143.15,143.1,8.38527812]
[1728365199880,17.4599,143.19,143.1,8.38527812]
[1728365199881,17.4599,143.19,143.1,1.39727812]
[1728365200100,6.15357698,143.18,143.09,17.4707]
[1728365200288,6.9863,143.14,143.09,24.4592]
[1728365200883,6.9863,143.14,143.09,17.4707]
[1728365201078,6.9863,143.14,143.1,6.9879]
[1728365202635,6.9875,143.12,143.08,6.5239]
[1728365203208,6.9875,143.12,143.08,13.5129]
[1728365203990,6.9875,143.12,143.08,6.5239]
[1728365206602,17.4622,143.17,143.09,23.776884]
[1728365206794,6.9863,143.14,143.1,6.9879]
[1728365207103,6.9863,143.14,143.09,30.765284]
[1728365207682,17.4622,143.17,143.09,30.765284]
[1728365207895,6.9867,143.13,143.09,30.765284]
[1728365208604,6.9867,143.13,143.09,23.776884]
[1728365212020,6.9867,143.13,143.09,30.765284]
[1728365212311,17.4622,143.17,143.09,23.776884]
[1728365212489,6.9862,143.14,143.1,6.9879]
[1728365212897,6.9857,143.15,143.11,6.9875]
[1728365213094,6.9855,143.16,143.11,6.9875]
[1728365213292,8.89023235,143.19,143.11,6.9875]
[1728365213293,13.17772708,143.15,143.11,6.9875]
[1728365213500,6.9858,143.15,143.11,6.9875]
[1728365213705,6.9857,143.15,143.11,30.764384]
[1728365214608,6.9853,143.16,143.11,30.764384]
[1728365214911,6.19390163,143.15,143.11,30.764384]
[1728365215108,6.9853,143.16,143.11,30.764384]
[1728365215317,6.19427918,143.15,143.11,30.764384]
[1728365215534,6.9853,143.16,143.11,30.764384]
[1728365215715,6.19492146,143.15,143.11,30.764384]
[1728365215971,6.9853,143.16,143.11,30.764384]
[1728365216098,6.19498623,143.15,143.11,30.764384]
[1728365216415,6.9853,143.16,143.12,6.987]
[1728365216595,6.19531384,143.15,143.12,6.987]
[1728365216807,6.9853,143.16,143.12,6.987]
[1728365217119,6.19514143,143.15,143.12,6.987]
[1728365217296,6.9853,143.16,143.12,6.987]
[1728365217596,6.19530532,143.15,143.12,6.987]
[1728365217913,6.9853,143.16,143.12,6.987]
[1728365218214,8.89023235,143.19,143.1,24.4578]
[1728365218215,6.9864,143.14,143.1,24.4578]
[1728365219291,6.9866,143.13,143.1,17.4699]
[1728365219687,17.4638,143.16,143.09,23.776884]
[1728365220000,6.9868,143.13,143.09,30.765284]
[1728365221218,6.9868,143.13,143.09,23.776884]
[1728365222117,6.9868,143.13,143.09,30.765484]
[1728365222301,8.89023235,143.19,143.11,6.9875]
[1728365222302,6.9857,143.15,143.11,6.9875]
[1728365222505,6.19748789,143.14,143.11,6.9875]
[1728365222710,6.9857,143.15,143.11,23.776884]
[1728365222906,6.19749028,143.14,143.11,23.776884]
[1728365223088,6.986,143.15,143.11,30.764484]
[1728365228422,6.9853,143.16,143.11,30.764484]
[1728365228720,6.19884271,143.15,143.11,30.764484]
[1728365228921,6.9853,143.16,143.11,30.764484]
[1728365229095,6.9845,143.18,143.13,13.13056015]
[1728365229295,23.10472725,143.17,143.11,41.244784]
[1728365229513,6.19985663,143.16,143.13,23.776884]
[1728365229818,6.9843,143.18,143.13,6.9866]
[1728365230115,16.11956978,143.17,143.13,20.11716015]
[1728365230322,6.19983453,143.16,143.13,20.11716015]
[1728365230547,6.9843,143.18,143.13,20.11716015]
[1728365230702,16.12119991,143.17,143.13,20.11716015]
[1728365230897,6.2004615,143.16,143.13,20.11716015]
[1728365231254,6.9843,143.18,143.13,20.11716015]
[1728365231532,6.20089578,143.17,143.13,20.11716015]
[1728365231822,6.9828,143.21,143.16,6.9848]
[1728365232004,16.1221144,143.2,143.16,20.11536015]
[1728365232201,6.20081323,143.19,143.16,20.11536015]
[1728365232395,6.9828,143.21,143.16,20.11536015]
[1728365232599,16.1217212,143.2,143.17,6.9846]
[1728365232895,6.200662,143.19,143.18,1.39658548]
[1728365233096,6.200662,143.19,143.16,6.985]
[1728365233298,6.9832,143.2,143.16,6.985]
[1728365233506,6.19957208,143.19,143.16,6.985]
[1728365233704,6.9832,143.2,143.16,6.985]
[1728365235261,8.64971041,143.25,143.15,15.7174]
[1728365235422,6.9845,143.18,143.15,15.7174]
[1728365235604,6.9845,143.18,143.14,6.2332]
[1728365235809,6.9849,143.17,143.14,6.2332]
[1728365237128,15.1969,143.22,143.14,6.2332]
[1728365237302,6.9852,143.16,143.14,30.010084]
[1728365237507,6.9848,143.17,143.14,30.010084]
[1728365237965,6.9848,143.17,143.14,6.2332]
[1728365241223,6.9838,143.19,143.14,13.2189]
[1728365241427,6.9838,143.19,143.15,30.762484]
[1728365242312,6.9838,143.19,143.16,1.39665194]
[1728365242513,6.9838,143.19,143.15,30.762484]
[1728365242713,6.9838,143.19,143.16,1.39665883]
[1728365243224,7.19529261,143.28,143.16,1.39665883]
[1728365243225,6.9831,143.21,143.17,6.9846]
[1728365244925,26.10241041,143.25,143.16,28.69856015]
[1728365245134,6.9824,143.22,143.17,48.222784]
[1728365245429,6.191451,143.21,143.17,61.35334415]
[1728365245619,6.9828,143.21,143.17,61.35334415]
[1728365247127,6.19383372,143.2,143.17,61.35334415]
[1728365247312,6.9828,143.21,143.17,61.35334415]
[1728365247520,6.19324249,143.2,143.17,61.35334415]
[1728365247712,6.9828,143.21,143.17,61.35334415]
[1728365247912,6.19340507,143.2,143.17,61.35334415]
[1728365248214,6.9828,143.21,143.17,61.35334415]
[1728365248527,6.19485045,143.2,143.17,61.35334415]
[1728365248727,6.9828,143.21,143.17,61.35334415]
[1728365248932,6.19501491,143.2,143.17,61.35334415]
[1728365249127,6.9828,143.21,143.17,61.35334415]
[1728365249365,6.19508068,143.2,143.17,61.35334415]
[1728365249530,6.9828,143.21,143.17,61.35334415]
[1728365249531,6.9828,143.21,143.17,48.222784]
[1728365249724,6.19514988,143.2,143.17,48.222784]
[1728365250032,6.9828,143.21,143.17,48.222784]
[1728365250326,6.19598416,143.2,143.17,48.222784]
[1728365250551,26.10241041,143.25,143.18,8.38033084]